bitfinex/quotes_SOLUSD_20240814
["timestamp","ask_amount","ask_price","bid_price","bid_amount"]
[1723594849042,0.85950493,146.84,146.78,17.0312]
[1723594849654,6.8092,146.86,146.81,6.8113]
[1723594850173,52.20707463,146.89,146.79,1.36235405]
[1723594850373,6.8089,146.87,146.82,23.8375]
[1723594850575,0.85950493,146.87,146.82,17.0265]
[1723594850734,6.8095,146.86,146.82,17.0265]
[1723594850934,6.0316,146.89,146.82,17.0265]
[1723594851159,6.8083,146.88,146.83,6.8102]
[1723594851661,26.93429,146.87,146.82,23.8374]
[1723594851860,6.93469,146.86,146.82,17.0265]
[1723594853510,20.25098,146.87,146.82,17.0265]
[1723594853799,65.25098,146.86,146.82,17.0265]
[1723594853966,0.12549,146.87,146.82,17.0265]
[1723594854168,0.37647,146.87,146.82,17.0265]
[1723594854395,45.37647,146.87,146.82,17.0265]
[1723594854693,20.0,146.86,146.83,6.8105]
[1723594855104,7.10555254,146.92,146.84,17.0243]
[1723594855394,39.07,146.91,146.84,17.0243]
[1723594855591,6.8088,146.87,146.82,6.8109]
[1723594856097,6.8082,146.88,146.83,6.8104]
[1723594857198,6.8083,146.88,146.81,17.0286]
[1723594857377,0.37647,146.89,146.84,6.81]
[1723594857569,6.93379,146.88,146.84,6.81]
[1723594857774,6.93379,146.88,146.83,6.8104]
[1723594858780,45.25098,146.87,146.81,23.8397]
[1723594859098,0.25098,146.86,146.81,23.8397]
[1723594859299,0.12549,146.85,146.81,23.8397]
[1723594859503,45.12549,146.85,146.81,23.8397]
[1723594859984,45.12549,146.85,146.78,17.0318]
[1723594860167,0.25098,146.86,146.8,17.0291]
[1723594860168,45.25098,146.86,146.8,17.0291]
[1723594860368,45.12549,146.86,146.8,17.0291]
[1723594860873,0.12549,146.85,146.82,6.811]
[1723594861074,45.12549,146.86,146.82,6.811]
[1723594861286,0.12549,146.87,146.82,17.0268]
[1723594861483,72.05968,146.87,146.82,17.0268]
[1723594861781,7.06018,146.86,146.82,23.8377]
[1723594861982,45.25098,146.85,146.82,23.8377]
[1723594862794,20.0,146.87,146.83,6.8102]
[1723594863308,0.85950493,146.92,146.86,17.0223]
[1723594863309,6.8065,146.92,146.86,17.0223]
[1723594863514,45.426,146.93,146.87,6.8087]
[1723594863676,6.356,146.93,146.87,6.8087]
[1723594863876,6.8068,146.92,146.87,6.8087]
[1723594864093,6.8069,146.91,146.87,6.8087]
[1723594864400,0.85950493,146.92,146.86,17.0223]
[1723594864703,6.805,146.95,146.9,6.8071]
[1723594864887,6.8055,146.94,146.89,23.8268]
[1723594865673,6.8055,146.94,146.89,17.0191]
[1723594866096,6.8055,146.94,146.89,23.8264]
[1723594866698,6.5615,146.97,146.89,17.0191]
[1723594866876,6.805,146.95,146.9,6.8072]
[1723594867077,0.12549,146.94,146.9,6.8072]
[1723594868071,20.12549,146.94,146.9,6.8072]
[1723594868502,6.3778,147.01,146.91,17.0163]
[1723594868816,6.805,146.95,146.91,17.0163]
[1723594869097,39.07,146.99,146.88,23.8282]
[1723594869098,6.8057,146.94,146.88,23.8282]
[1723594869298,6.805,146.95,146.88,17.0203]
[1723594869498,39.07,146.99,146.92,6.8063]
[1723594869799,6.8041,146.97,146.92,6.8063]
[1723594870103,20.25098,146.98,146.93,6.8059]
[1723594870104,20.0,146.96,146.93,6.8059]
[1723594870302,27.05468,146.98,146.93,6.8059]
[1723594870511,27.05468,146.98,146.92,6.8063]
[1723594870512,6.8041,146.97,146.92,6.8063]
[1723594870693,20.0,146.96,146.92,6.8063]
[1723594871005,20.0,146.96,146.91,17.017]
[1723594871006,26.8046,146.96,146.91,23.8238]
[1723594871207,0.12549,146.95,146.91,23.8238]
[1723594871914,45.25098,146.95,146.91,23.8238]
[1723594872581,52.05598,146.95,146.91,23.8238]
[1723594872778,26.93009,146.96,146.91,23.8238]
[1723594872983,52.05608,146.95,146.91,17.017]
[1723594873184,45.25098,146.95,146.91,23.8238]
[1723594873423,20.0,146.96,146.93,6.8059]
[1723594873710,27.05508,146.97,146.91,17.017]
[1723594873882,51.93069,146.95,146.91,17.017]
[1723594874086,0.25098,146.94,146.9,6.8073]
[1723594874286,7.05648,146.94,146.89,6.8077]
[1723594874722,0.25098,146.94,146.9,6.8073]
[1723594875009,0.12549,146.93,146.9,6.8073]
[1723594875219,45.12549,146.93,146.9,6.8073]
[1723594875506,45.0,146.95,146.9,23.8248]
[1723594875713,0.37647,146.94,146.9,17.0176]
[1723594875887,7.05678,146.94,146.9,23.8248]
[1723594876275,0.25098,146.94,146.9,23.8248]
[1723594876590,45.25098,146.94,146.9,23.8248]
[1723594877710,6.93139,146.93,146.88,6.8081]
[1723594878115,0.12549,146.93,146.87,17.0213]
[1723594878278,0.12549,146.93,146.9,6.8072]
[1723594879726,45.25098,146.94,146.9,6.8072]
[1723594879917,45.25098,146.94,146.91,6.8068]
[1723594880307,0.25098,146.94,146.91,6.8068]
[1723594880510,20.25098,146.94,146.91,6.8068]
[1723594881006,6.8039,146.98,146.91,17.0164]
[1723594881221,20.0,146.97,146.91,17.0164]
[1723594881591,20.0,146.97,146.94,17.0137]
[1723594881791,20.0,146.98,146.94,17.0137]
[1723594882716,26.8036,146.98,146.94,17.0137]
[1723594883591,26.8036,146.98,146.88,31.17]
[1723594883592,0.85950493,146.97,146.91,23.8235]
[1723594883787,6.92999,146.96,146.92,6.8063]
[1723594884892,6.805,146.95,146.91,23.8236]
[1723594885195,6.93009,146.96,146.92,6.8064]
[1723594885391,45.25098,146.97,146.93,6.8055]
[1723594886018,0.12549,146.98,146.94,17.0132]
[1723594886224,0.12549,146.99,146.95,6.8046]
[1723594886396,26.8028,147.0,146.95,6.8046]
[1723594886913,6.8038,146.98,146.94,17.0132]
[1723594887586,6.2099,147.05,146.98,17.0084]
[1723594888092,6.7994,147.08,147.02,6.8014]
[1723594888305,13.0086,147.09,147.04,6.8006]
[1723594888515,6.7987,147.09,147.04,6.8006]
[1723594888708,6.799,147.08,147.01,17.0054]
[1723594889010,6.799,147.08,147.02,6.8017]
[1723594889324,6.799,147.08,147.01,17.0054]
[1723594889325,6.799,147.08,147.03,6.8012]
[1723594890399,6.7985,147.09,147.04,6.8008]
[1723594891201,20.0,147.08,147.01,17.0054]
[1723594891518,6.7995,147.07,147.01,23.8075]
[1723594891729,0.12549,147.08,147.01,23.8075]
[1723594891899,0.85950493,147.06,147.01,23.8075]
[1723594892100,6.7995,147.07,147.01,23.8075]
[1723594892312,6.7995,147.07,147.02,6.8017]
[1723594893789,51.92539,147.06,147.01,23.8076]
[1723594893998,0.12549,147.07,147.01,23.8076]
[1723594893999,6.92499,147.07,147.02,6.8017]
[1723594894291,45.37647,147.06,147.02,6.8016]
[1723594894493,45.25098,147.06,147.02,6.8016]
[1723594895526,6.8009,147.04,146.98,17.009]
[1723594895699,6.92589,147.05,147.0,6.8026]
[1723594895892,6.8004,147.05,147.0,6.8026]
[1723594896227,45.37647,147.06,147.01,17.0055]
[1723594896402,45.37647,147.06,146.96,16.6044]
[1723594896403,0.12549,147.05,146.98,17.0087]
[1723594896598,0.12549,147.05,146.99,6.8031]
[1723594896599,6.8009,147.04,146.99,6.8031]
[1723594896801,45.37647,147.03,146.99,6.8031]
[1723594897704,52.17777,147.03,146.98,23.8122]
[1723594897905,0.12549,147.02,146.95,17.0121]
[1723594898093,59.02549,147.02,146.92,32.4389]
[1723594898293,45.37647,147.01,146.92,15.4231]
[1723594898494,20.0,147.0,146.96,6.8042]
[1723594899228,26.8028,147.0,146.95,23.8168]
[1723594899427,45.25098,146.99,146.95,23.8168]
[1723594900226,6.8041,146.97,146.92,32.4387]
[1723594900409,0.25098,146.98,146.93,6.8058]
[1723594900809,7.05468,146.98,146.93,6.8058]
[1723594901126,0.25098,146.98,146.94,6.8054]
[1723594901632,45.25098,146.99,146.95,6.8047]
[1723594902011,52.05408,146.99,146.95,6.8047]
[1723594902723,6.8059,146.94,146.88,32.8363]
[1723594903096,6.806,146.93,146.88,23.8278]
[1723594903297,6.93099,146.94,146.89,6.8076]
[1723594903897,52.18277,146.93,146.88,23.8279]
[1723594904099,52.05728,146.93,146.88,23.8279]
[1723594904419,52.05728,146.93,146.89,6.8077]
[1723594904420,45.25098,146.93,146.89,6.8077]
[1723594905527,6.8055,146.94,146.89,6.8077]
[1723594905824,7.05608,146.95,146.9,6.8072]
[1723594906032,17.0098,146.98,146.93,6.8055]
[1723594906033,6.8037,146.98,146.93,6.8055]
[1723594906337,20.12549,146.97,146.93,6.8055]
[1723594906515,26.92959,146.97,146.92,6.8063]
[1723594907642,20.12549,146.97,146.91,17.0169]
[1723594907848,0.12549,146.97,146.91,17.0169]
[1723594908018,45.50196,146.97,146.91,17.0169]
[1723594908216,20.0,146.96,146.91,17.0169]
[1723594908535,45.25098,146.95,146.91,17.0169]
[1723594908705,6.8057,146.94,146.89,6.8077]
[1723594908912,45.12549,146.93,146.89,6.8077]
[1723594909337,0.12549,146.94,146.9,6.8071]
[1723594909542,45.12549,146.94,146.9,6.8071]
[1723594909843,51.93099,146.94,146.89,23.8265]
[1723594910139,0.25098,146.93,146.89,23.8265]
[1723594910333,0.12549,146.93,146.89,23.8265]
[1723594910808,0.25098,146.93,146.86,17.0228]
[1723594911012,0.25098,146.93,146.84,15.8166]
[1723594911013,6.8081,146.89,146.84,6.8097]
[1723594911229,0.85950493,146.88,146.84,6.8097]
[1723594911740,72.66780493,146.88,146.83,23.8364]
[1723594911940,65.85950493,146.88,146.83,17.026]
[1723594912111,65.0,146.88,146.84,6.81]
[1723594912721,71.8082,146.88,146.84,6.81]
[1723594913226,20.0,146.88,146.83,17.026]
[1723594913738,0.12549,146.89,146.83,17.026]
[1723594913950,65.25098,146.89,146.83,17.026]
[1723594914134,65.25098,146.89,146.85,6.8096]
[1723594914318,72.05878,146.89,146.85,6.8096]
[1723594914632,65.25098,146.89,146.85,6.8096]
[1723594915340,72.05878,146.89,146.85,6.8096]
[1723594915524,72.05878,146.89,146.84,6.81]
[1723594917646,20.0,146.89,146.85,6.8096]
[1723594917847,20.0,146.89,146.85,17.0233]
[1723594918150,20.0,146.91,146.9,6.8073]
[1723594918345,6.8051,146.95,146.9,6.8073]
[1723594918540,20.0,146.94,146.9,6.8073]
[1723594918720,20.0,146.94,146.86,1.36169232]
[1723594918925,20.0,146.94,146.86,17.0227]
[1723594919150,20.0,146.95,146.86,17.0227]
[1723594919451,6.8069,146.91,146.87,6.8087]
[1723594920451,7.05748,146.92,146.87,6.8087]
[1723594920626,45.12549,146.91,146.87,6.8087]
[1723594922959,51.18,146.95,146.88,17.02]
[1723594923170,51.18,146.95,146.82,31.18]
[1723594923171,31.18,146.99,146.87,16.278]
[1723594923532,6.804,146.98,146.94,6.8054]
[1723594923759,6.8041,146.97,146.91,17.0169]
[1723594924563,21.8944,147.0,146.88,31.18]
[1723594924739,22.9821,147.04,146.92,31.18]
[1723594925062,6.8022,147.01,146.97,17.0093]
[1723594925431,29.7833,147.04,146.97,17.0093]
[1723594925633,6.7999,147.06,147.01,6.8021]
[1723594925831,6.7999,147.06,146.94,46.3099]
[1723594925832,28.7045,147.08,147.03,6.801]
[1723594926058,13.1439,147.08,147.03,6.801]
[1723594926257,6.7999,147.06,147.02,17.0039]
[1723594926435,38.9,147.1,146.96,38.9]
[1723594926638,38.9,147.1,146.97,20.0]
[1723594926836,6.799,147.08,147.0,17.0057]
[1723594927067,6.7985,147.1,147.04,6.8008]
[1723594927239,6.7985,147.1,147.02,17.0034]
[1723594927240,6.7985,147.1,147.05,6.8004]
[1723594927660,6.7985,147.1,147.02,17.0034]
[1723594927661,6.7985,147.1,147.04,6.8008]
[1723594927842,6.3447,147.12,147.02,23.8047]
[1723594928037,0.85950493,147.11,147.02,23.8047]
[1723594928236,0.85950493,147.1,146.97,20.0]
[1723594928469,0.85950493,147.1,146.97,26.8036]
[1723594928470,6.8013,147.03,146.97,26.8036]
[1723594928767,6.8013,147.03,146.94,15.1299]
[1723594928768,45.12549,147.02,146.96,17.0113]
[1723594928969,0.25098,147.01,146.96,23.8157]
[1723594929131,45.12549,147.02,146.97,6.8039]
[1723594929330,0.12549,147.04,146.96,17.0113]
[1723594929331,6.92679,147.04,146.96,17.0113]
[1723594929534,65.25098,147.03,146.98,6.8035]
[1723594929736,72.05238,147.03,146.98,6.8035]
[1723594929967,6.92759,147.02,146.96,17.0113]
[1723594930168,6.92759,147.02,146.96,23.8157]
[1723594930169,45.37647,147.01,146.96,23.8157]
[1723594930357,71.92679,147.03,146.98,6.8034]
[1723594930871,20.0,147.03,146.99,6.803]
[1723594931239,6.8004,147.05,146.99,6.8027]
[1723594933143,0.12549,147.02,146.98,17.0081]
[1723594933455,0.12549,147.03,146.98,23.8116]
[1723594933645,0.25098,147.03,146.98,17.0081]
[1723594933854,0.25098,147.02,146.96,6.8042]
[1723594934051,0.12549,147.01,146.95,17.0125]
[1723594934254,0.25098,147.02,146.95,17.0125]
[1723594935969,0.25098,147.02,146.98,6.8035]
[1723594936166,0.12549,147.03,146.97,17.0095]
[1723594936377,0.12549,147.03,146.99,6.803]
[1723594936585,7.05228,147.03,146.99,6.803]
[1723594936942,6.8005,147.05,147.0,23.809]
[1723594937365,0.85950493,147.05,146.96,17.011]
[1723594937567,6.8018,147.02,146.97,6.8039]
[1723594937955,6.8013,147.03,146.98,6.8035]
[1723594938161,6.8013,147.03,146.94,15.1299]
[1723594938162,0.12549,147.04,146.99,17.0077]
[1723594938355,0.12549,147.04,147.0,6.8023]
[1723594938559,6.92639,147.04,146.99,23.8107]
[1723594938758,52.05238,147.03,146.99,17.0077]
[1723594938962,6.92729,147.02,146.97,6.8039]
[1723594939166,6.92729,147.02,146.96,17.0111]
[1723594939167,45.25098,147.03,146.99,6.8031]
[1723594939369,52.05238,147.03,146.98,6.8036]
[1723594939784,0.25098,147.02,146.93,23.2958]
[1723594939955,6.8037,146.98,146.93,23.8199]
[1723594940282,6.92869,146.99,146.94,6.8054]
[1723594940448,6.8047,146.96,146.9,16.1484]
[1723594940644,6.8047,146.96,146.91,6.8064]
[1723594940968,0.12549,146.98,146.91,17.0162]
[1723594941445,6.8049,146.96,146.91,23.8226]
[1723594941651,7.05548,146.97,146.91,23.823]
[1723594941850,45.25098,146.96,146.91,23.823]
[1723594942047,45.25098,146.96,146.91,17.0162]
[1723594942251,6.805,146.95,146.91,17.0162]
[1723594942468,45.25098,146.96,146.91,17.0162]
[1723594943996,6.8055,146.94,146.89,6.8077]
[1723594944279,0.12549,146.95,146.88,23.8285]
[1723594944280,6.806,146.93,146.88,23.8285]
[1723594944673,6.806,146.93,146.89,6.8077]
[1723594944858,6.8056,146.94,146.89,6.8077]
[1723594945465,0.85950493,146.93,146.89,6.8077]
[1723594946772,6.8056,146.94,146.89,6.8077]
[1723594947784,0.25098,146.95,146.89,6.8077]
[1723594948077,0.25098,146.94,146.88,17.0203]
[1723594948262,0.12549,146.95,146.88,17.0203]
[1723594948449,7.05598,146.95,146.91,6.8067]
[1723594948646,7.05598,146.95,146.9,6.8072]
[1723594948890,6.8065,146.92,146.88,17.0203]
[1723594949049,0.98499493,146.93,146.88,23.8285]
[1723594949256,0.37647,146.92,146.88,23.8285]
[1723594949483,0.12549,146.91,146.88,23.8285]
[1723594949684,0.12549,146.91,146.86,22.9571]
[1723594949877,6.8073,146.9,146.85,23.8332]
[1723594950184,45.37647,146.89,146.86,6.8091]
[1723594950553,6.8069,146.91,146.87,6.8087]
[1723594950752,45.25098,146.9,146.86,6.8091]
[1723594951253,110.44691846,147.37,146.87,17.021]
[1723594951254,0.12549,146.95,146.87,17.021]
[1723594951471,0.12549,146.93,146.88,6.8079]
[1723594951666,0.25098,146.93,146.88,6.8079]
[1723594951971,0.12549,146.93,146.9,6.8073]
[1723594952284,7.05648,146.94,146.9,6.8073]
[1723594953283,45.12549,146.93,146.87,17.021]
[1723594953452,6.93249,146.91,146.86,6.8091]
[1723594953662,0.12549,146.9,146.86,6.809]
[1723594953858,45.37647,146.9,146.84,17.0249]
[1723594954888,0.12549,146.89,146.84,17.0249]
[1723594955186,6.8083,146.88,146.84,17.0249]
[1723594955355,52.05968,146.87,146.83,6.8104]
[1723594955558,52.05968,146.87,146.81,32.0632]
[1723594955559,0.25098,146.87,146.81,32.0632]
[1723594955779,45.25098,146.87,146.81,32.0632]
[1723594956171,6.93329,146.89,146.83,17.0256]
[1723594956364,45.37647,146.88,146.83,17.0256]
[1723594957886,45.37647,146.88,146.84,6.8099]
[1723594959785,0.12549,146.87,146.83,17.0256]
[1723594960290,0.12549,146.87,146.83,23.8361]
[1723594960967,6.93419,146.87,146.83,17.0256]
[1723594961278,45.37647,146.86,146.83,23.8361]
[1723594961467,45.12549,146.86,146.84,6.8099]
[1723594961669,45.12549,146.87,146.84,6.8099]
[1723594964870,45.0,146.87,146.84,6.8099]
[1723594965077,15.7697,146.89,146.86,6.809]
[1723594965277,37.4893,146.92,146.8,31.18]
[1723594965278,6.3093,146.92,146.8,31.18]
[1723594965462,6.3093,146.92,146.82,31.18]
[1723594965663,6.3093,146.92,146.88,6.8078]
[1723594965964,13.1157,146.92,146.87,17.021]
[1723594966382,6.807,146.91,146.87,17.021]
[1723594966589,51.93279,146.9,146.85,6.8095]
[1723594966899,6.8078,146.89,146.84,23.835]
[1723594967196,7.66730493,146.89,146.84,23.835]
[1723594967364,45.0,146.88,146.84,23.835]
[1723594967961,51.8083,146.88,146.84,17.025]
[1723594968162,51.8083,146.88,146.83,6.8105]
[1723594968163,6.8106,146.83,146.78,6.8125]
[1723594968389,0.85950493,146.82,146.79,6.812]
[1723594968792,0.12549,146.82,146.79,6.812]
[1723594968990,0.50196,146.82,146.79,6.812]
[1723594969485,7.31306,146.82,146.74,17.036]
[1723594969813,45.0,146.81,146.78,6.8128]
[1723594969970,45.50196,146.82,146.78,6.8128]
[1723594972594,45.50196,146.82,146.79,6.8124]
[1723594972780,45.0,146.81,146.79,6.8124]
[1723594973094,0.50196,146.82,146.79,6.8124]
[1723594973780,0.50196,146.82,146.76,17.0334]
[1723594973979,7.31306,146.82,146.77,6.8129]
[1723594974185,45.0,146.81,146.77,6.8129]
[1723594974706,45.0,146.81,146.78,6.8127]
[1723594975608,45.0,146.81,146.79,6.8124]
[1723594976071,45.0,146.81,146.78,6.8128]
[1723594976402,45.50196,146.82,146.78,6.8128]
[1723594977502,45.50196,146.82,146.76,17.0334]
[1723594977503,45.50196,146.82,146.79,6.8124]
[1723594977667,0.50196,146.82,146.79,6.8124]
[1723594978808,0.50196,146.82,146.78,6.8128]
[1723594979381,0.50196,146.82,146.79,6.8123]
[1723594980310,0.50196,146.82,146.78,6.8128]
[1723594980991,7.31296,146.82,146.77,6.8133]
[1723594981200,45.0,146.81,146.77,6.8133]
[1723594981907,45.0,146.81,146.78,17.0315]
[1723594982205,45.0,146.81,146.79,6.8121]
[1723594982410,45.50196,146.82,146.79,6.8121]
[1723594985009,45.50196,146.82,146.78,23.8442]
[1723594985214,45.50196,146.82,146.79,6.8123]
[1723594986011,0.50196,146.82,146.79,6.8123]
[1723594986398,45.0,146.83,146.81,6.8113]
[1723594986597,52.18667,146.84,146.78,17.0315]
[1723594986798,0.12549,146.83,146.78,17.0315]
[1723594986992,0.37647,146.83,146.78,17.0315]
[1723594987201,0.12549,146.82,146.79,6.8123]
[1723594987407,45.25098,146.82,146.79,6.8123]
[1723594987708,0.12549,146.81,146.78,17.0315]
[1723594987896,0.25098,146.81,146.78,17.0315]
[1723594988600,0.12549,146.8,146.73,15.7615]
[1723594988788,0.12549,146.78,146.71,17.0393]
[1723594988993,6.93939,146.76,146.71,17.0393]
[1723594989205,45.37647,146.75,146.71,17.0393]
[1723594990111,6.93799,146.79,146.74,6.8147]
[1723594990318,45.37647,146.78,146.74,6.8147]
[1723594990518,6.8138,146.76,146.7,17.0411]
[1723594990822,45.50196,146.75,146.72,6.8156]
[1723594990989,45.0,146.75,146.73,6.8151]
[1723594991321,37.992,146.8,146.75,6.8142]
[1723594991619,52.06338,146.79,146.74,6.8146]
[1723594992727,0.25098,146.78,146.74,6.8146]
[1723594993208,0.12549,146.77,146.73,6.8152]
[1723594993404,0.12549,146.76,146.72,23.854]
[1723594993611,0.25098,146.76,146.72,23.854]
[1723594993805,0.25098,146.75,146.72,23.854]
[1723594994118,0.12549,146.74,146.72,23.854]
[1723594994296,45.0,146.76,146.73,6.8152]
[1723594994497,0.50196,146.75,146.72,23.854]
[1723594994890,31.18,146.74,146.69,17.0422]
[1723594995217,0.37647,146.73,146.69,23.8588]
[1723594995416,45.50196,146.73,146.69,23.8588]
[1723594995723,45.50196,146.73,146.7,6.8165]
[1723594995883,0.50196,146.73,146.7,6.8165]
[1723594997905,0.37647,146.73,146.7,6.8165]
[1723594998625,0.37647,146.73,146.71,6.816]
[1723594998819,0.37647,146.73,146.69,23.8589]
[1723594999032,0.12549,146.72,146.69,23.8589]
[1723595003141,0.12549,146.72,146.66,17.0457]
[1723595003315,6.8171,146.69,146.61,16.179]
[1723595003637,6.8171,146.69,146.64,6.8193]
[1723595003638,46.11048493,146.68,146.64,6.8193]
[1723595003804,0.85950493,146.67,146.64,6.8193]
[1723595004004,0.85950493,146.67,146.61,16.179]
[1723595004200,0.50196,146.66,146.6,17.0527]
[1723595005017,0.50196,146.66,146.62,7.6584408]
[1723595005325,45.50196,146.66,146.62,7.6584408]
[1723595006104,52.32066,146.66,146.62,0.8383408]
[1723595006425,6.94529,146.63,146.62,0.8383408]
[1723595006629,53.18126493,146.63,146.62,0.8383408]
[1723595006840,59.65546493,146.63,146.62,0.8383408]
[1723595007021,6.8213,146.6,146.55,6.8235]
[1723595007360,0.12549,146.58,146.55,6.8235]
[1723595008405,45.37647,146.59,146.56,6.8231]
[1723595008635,45.37647,146.59,146.57,6.8225]
[1723595008806,54.0127,146.67,146.6,6.8212]
[1723595009008,6.8217,146.59,146.53,6.824]
[1723595009207,31.18,146.61,146.51,17.0631]
[1723595009410,31.18,146.59,146.51,23.8881]
[1723595009627,6.8226,146.57,146.51,23.8881]
[1723595010145,0.12549,146.55,146.51,17.0631]
[1723595010336,45.25098,146.55,146.51,23.8884]
[1723595010512,45.0,146.55,146.51,17.0631]
[1723595010710,45.0,146.55,146.53,6.8245]
[1723595011333,0.12549,146.54,146.52,6.8249]
[1723595011550,0.37647,146.54,146.52,6.8249]
[1723595012043,45.0,146.55,146.53,6.8244]
[1723595012740,45.0,146.55,146.54,6.824]
[1723595013745,45.0,146.55,146.51,17.0631]
[1723595013746,45.12549,146.55,146.53,6.8244]
[1723595014047,0.12549,146.54,146.51,17.0631]
[1723595014216,0.12549,146.58,146.54,6.824]
[1723595014415,0.12549,146.58,146.55,6.8235]
[1723595014416,45.50196,146.58,146.55,6.8235]
[1723595014625,0.12549,146.58,146.55,6.8234]
[1723595014932,0.12549,146.58,146.54,23.8841]
[1723595015745,45.12549,146.58,146.54,23.8841]
[1723595015952,0.25098,146.57,146.55,6.8234]
[1723595016444,0.25098,146.57,146.54,23.8841]
[1723595016650,0.12549,146.56,146.54,23.8841]
[1723595018838,0.25098,146.56,146.54,23.8841]
[1723595019036,0.25098,146.55,146.54,23.8841]
[1723595019242,0.12549,146.56,146.54,23.8841]
[1723595019834,0.12549,146.56,146.54,17.0601]
[1723595020339,0.12549,146.56,146.52,6.8249]
[1723595020541,0.12549,146.55,146.47,17.9055408]
[1723595020751,0.12549,146.52,146.47,17.9055408]
[1723595020940,0.98499493,146.52,146.47,24.7326408]
[1723595021245,0.37647,146.51,146.47,17.9055408]
[1723595021445,0.12549,146.53,146.5,6.8254]
[1723595021626,45.50196,146.53,146.5,6.8254]
[1723595022043,0.50196,146.53,146.51,6.8254]
[1723595022741,0.50196,146.53,146.5,6.8258]
[1723595023056,7.32666,146.53,146.48,6.8264]
[1723595023350,0.12549,146.51,146.47,0.8383408]
[1723595023530,0.37647,146.51,146.47,0.8383408]
[1723595023723,0.12549,146.5,146.47,0.8383408]
[1723595024050,0.37647,146.5,146.47,7.6656408]
[1723595024228,0.37647,146.5,146.47,0.8383408]
[1723595025050,0.12549,146.5,146.49,6.8264]
[1723595025428,0.12549,146.5,146.48,23.8929]
[1723595025753,0.12549,146.5,146.49,6.8264]
[1723595026254,0.12549,146.5,146.48,23.8927]
[1723595027052,0.12549,146.5,146.49,6.8264]
[1723595027359,0.12549,146.5,146.48,23.8929]
[1723595028440,0.12549,146.5,146.48,17.0661]
[1723595028929,23.3756,146.55,146.5,6.8256]
[1723595029127,20.0,146.54,146.5,6.8256]
[1723595029328,20.0,146.54,146.48,17.0661]
[1723595030058,20.0,146.54,146.49,6.8261]
[1723595030349,45.12549,146.53,146.5,17.0638]
[1723595030555,0.12549,146.53,146.5,23.8894]
[1723595030942,0.12549,146.53,146.51,6.8253]
[1723595031751,0.12549,146.53,146.52,6.825]
[1723595032054,15.5081,146.59,146.54,6.8237]
[1723595032345,15.5081,146.59,146.55,6.8235]
[1723595032925,0.85950493,146.59,146.55,6.8235]
[1723595033337,13.3906,146.6,146.55,6.8235]
[1723595033753,6.5694,146.6,146.53,6.8242]
[1723595033972,6.8226,146.57,146.52,23.8862]
[1723595034433,45.37647,146.56,146.54,6.824]
[1723595034848,0.12549,146.55,146.52,23.8862]
[1723595035050,0.12549,146.55,146.53,6.8243]
[1723595035430,45.37647,146.56,146.54,6.824]
[1723595035629,45.12549,146.56,146.54,6.824]
[1723595035850,6.8218,146.59,146.54,6.824]
[1723595036058,0.12549,146.58,146.54,17.0593]
[1723595036236,0.25098,146.59,146.54,17.0593]
[1723595036429,0.25098,146.59,146.56,6.823]
[1723595036631,0.25098,146.59,146.55,6.8235]
[1723595036862,7.07278,146.59,146.54,23.8832]